Cogmind - Beta 14 @@@ ROGUE MODE // 2024.10.19 @ 18:32:26 Player: Some Pennies Result: Destroyed by B-99 Colossus with Linear Accelerator Performance ------------- Evolutions (8) 4000 Regions Visited (27) 5400 Robots Destroyed (351) 1755 Value Destroyed (16241) 16241 Prototype IDs (88) 1760 Alien Tech Used (6) 1200 Bonus (11561) 11561 TOTAL SCORE: 41917 Bonus ------- High Alert Combat Kills 1370 Follower Combat Kills 1627 Entered Garrisons 200 Network Hubs Disabled 800 Registered with UFD 300 Met Data Miner 300 Met Warlord at Base 500 MAIN.C Attacked Warlord 500 Built Enhanced Grunts 300 A7 Reached Mainframe 300 Met R17 at Cetus 500 Used Core Reset Matrix 3000 Met R17 at Research 2000 Met Sigix 2000 Friendly Fire -2136 Cogmind --------- Core Integrity 0/1450 Matter 208/300 Energy 56/350 System Corruption 7% Temperature Cool (91) Movement Immobile (Siege) Ox1 Location -2/Section 7 Parts ------- > --- POWER (2) -------- Quantum Reactor > --- PROPULSION (6) --- Advanced Heavy Siege Treads High-density Centrium Leg > --- UTILITY (13) ----- Huge Storage Unit Surveybot 17 Chip Quantum Capacitor Improved Hacking Suite Improved Hacking Suite Advanced Hacking Suite Improved System Shield Long-range Tractor Beam > --- WEAPON (2) ------- Enhanced Nova Cannon > --- INVENTORY (25) --- High-density Centrium Leg Advanced Energy Well (500) Experimental Terrain Scanner Improved Weapon Shielding Experimental EM Disruption Field Antimissile System Transdimensional Reconstructor Subatomic Replicator Spacefold Activator EMDS Light Antimatter Cannon Heavy Shock Bomb Launcher Advanced Remote Datajack Peak State ------------ > --- POWER ------------ Quantum Reactor Quantum Reactor > --- PROPULSION ------- Biometal Heavy Treads Advanced Heavy Siege Treads High-density Centrium Leg High-density Centrium Leg > --- UTILITY ---------- Advanced Heat Sink Advanced Heat Sink Huge Storage Unit Surveybot 17 Chip Quantum Capacitor Improved Cloaking Device Centrium Medium Armor Plating Improved Hacking Suite Improved Hacking Suite Advanced Hacking Suite Improved System Shield Spacefold Activator > --- WEAPON ----------- Sigix Broadsword > --- INVENTORY -------- Biometal Heavy Treads Advanced Energy Well Experimental Terrain Scanner Experimental Utility Shielding Improved Weapon Shielding Experimental EM Disruption Field Antimissile System Long-range Tractor Beam Transdimensional Reconstructor Subatomic Replicator EMDS EMDS Enhanced Nova Cannon Enhanced Nova Cannon Light Antimatter Cannon Heavy Shock Bomb Launcher Advanced Remote Datajack Sigix Containment Pod [Rating: 204] Favorites ----------- Power Micro Nuclear Core Engine Cooled Ion Engine Power Core Micro Nuclear Core Reactor Quantum Reactor Propulsion Light Treads Treads Light Treads Leg Biometal Leg Hover Unit Gravmag System Flight Unit Improved Flight Unit Utility Improved Hacking Suite Device Advanced Heat Sink Storage Huge Storage Unit Processor Surveybot 17 Chip Hackware Improved Hacking Suite Protection Centrium Medium Armor Plating Artifact Spacefold Activator Weapon Advanced KE Penetrator Energy Gun Advanced Variable Charge Gun Energy Cannon Advanced Beam Cannon Ballistic Gun Advanced KE Penetrator Ballistic Cannon Light Antimatter Cannon Launcher Heavy Shock Bomb Launcher Special Weapon Plasma Cutter Impact Weapon Mace Slashing Weapon Scythe Piercing Weapon Lance Special Melee Weapon Improved Datajack Build | -11 -10 -10 -9 -9 -9 -9 -9 -6 -6 -6 -6 -5 -5 -5 -5 -5 -5 -4 -4 -4 -4 -3 -3 -3 -2 -2 -2 ------- Run | Yrd Mat Min Mat Sto Gar Rec Scr Fac Low Low Dat Pro Fac Ext Cet Arc Hub Fac Upp Upp War Pro Res Tes Res Qua Sec Slots Evolved 16 | . . . 2 . . . . 6 . . . . 2 . . . . 2 . . . . 2 . 2 . . Power 1 | . . . . . . . . . . . . . . . . . . . . . . . 1 . . . . Propulsion 4 | . . . 1 . . . . 2 . . . . 1 . . . . . . . . . . . . . . Utility 11 | . . . 1 . . . . 4 . . . . 1 . . . . 2 . . . . 1 . 2 . . Weapon . | . . . . . . . . . . . . . . . . . . . . . . . . . . . . Parts Attached 672 | 7 19 6 38 17 23 8 12 40 . 7 . 9 36 18 8 16 44 19 7 1 14 2 17 30 101 99 74 Power 48 | 1 2 . 3 . 1 . 1 . . . . 2 1 1 1 6 1 2 . . 1 . 3 4 13 3 2 Engine 6 | 1 2 . 3 . . . . . . . . . . . . . . . . . . . . . . . . Core 8 | . . . . . 1 . 1 . . . . 2 . 1 1 . . . . . . . . 2 . . . Reactor 34 | . . . . . . . . . . . . . 1 . . 6 1 2 . . 1 . 3 2 13 3 2 Propulsion 117 | 2 . 2 14 4 3 . 4 6 . . . . 6 1 1 3 18 1 1 . 3 2 5 5 21 3 12 Treads 71 | 2 . 2 13 4 2 . 1 . . . . . 6 1 1 1 9 . . . . 1 . . 15 3 10 Leg 10 | . . . . . . . . . . . . . . . . 2 . . . . . . . . 6 . 2 Wheel . | . . . . . . . . . . . . . . . . . . . . . . . . . . . . Hover 1 | . . . . . 1 . . . . . . . . . . . . . . . . . . . . . . Flight 35 | . . . 1 . . . 3 6 . . . . . . . . 9 1 1 . 3 1 5 5 . . . Utility 274 | 2 3 2 10 6 4 . 5 27 . . . 2 13 6 2 6 16 11 4 1 5 . 5 13 39 61 31 Device 167 | 1 2 2 7 3 3 . 2 19 . . . 1 4 3 . 4 1 6 4 1 4 . 2 9 25 47 17 Storage 11 | 1 1 . . 1 . . 1 . . . . . 1 . . 1 . 1 . . . . 1 . 1 1 1 Processor 14 | . . . . . . . . 3 . . . 1 1 . . . . 1 . . 1 . 2 2 3 . . Hackware 27 | . . . . 2 . . . 4 . . . . 5 . . . 5 . . . . . . 1 4 5 1 Protection 53 | . . . 3 . 1 . 2 1 . . . . 2 3 2 1 10 3 . . . . . 1 6 8 10 Artifact 2 | . . . . . . . . . . . . . . . . . . . . . . . . . . . 2 Weapon 233 | 2 14 2 11 7 15 8 2 7 . 7 . 5 16 10 4 1 9 5 2 . 5 . 4 8 28 32 29 Energy Gun 20 | 2 2 . 1 . . . . . . . . . . . 1 . . 1 . . 2 . . 1 10 . . Energy Cannon 92 | . 5 1 7 3 7 2 1 2 . . . . 9 4 . . 4 . . . 1 . 1 2 8 17 18 Ballistic Gun 23 | . 3 . 1 1 1 1 . . . . . . 2 3 3 1 2 . . . . . . . 5 . . Ballistic Cannon 6 | . . . . . . . . . . . . . . . . . 1 2 1 . . . . 1 1 . . Launcher 27 | . 2 1 1 1 4 . . . . 3 . 1 3 3 . . 2 . . . 1 . . . . 3 2 Special Weapon 20 | . 2 . . 2 1 . . 3 . 1 . . . . . . . . . . . . . . 1 10 . Impact Weapon 6 | . . . . . 2 3 . 1 . . . . . . . . . . . . . . . . . . . Slashing Weapon 22 | . . . . . . . 1 1 . 2 . 2 1 . . . . . . . . . . 1 3 2 9 Piercing Weapon 3 | . . . . . . . . . . . . . . . . . . . . . . . 2 1 . . . Special Melee Weapon 14 | . . . 1 . . 2 . . . 1 . 2 1 . . . . 2 1 . 1 . 1 2 . . . Unidentified Prototypes 40 | . . 2 5 . . . . 2 . . . . 2 1 4 2 2 1 . . 6 . . 7 1 3 2 Corrupted Parts 6 | . . 2 . . . . . . . . . . . . . 2 1 . . . . . . . . . 1 System Corruption 28 | . . 9 . . . . . . . . . . . . . 9 4 . . . . . . . . . 6 Parts Lost 76 | . . . 1 . 3 . . 1 . . . . 10 1 . . 15 4 . . . . 1 2 11 8 19 Power 6 | . . . . . . . . . . . . . 1 . . . . . . . . . . . 2 1 2 Propulsion 19 | . . . . . 2 . . . . . . . 3 . . . 5 1 . . . . . 1 1 2 4 Utility 39 | . . . . . 1 . . . . . . . 3 1 . . 8 3 . . . . 1 1 6 5 10 Weapon 12 | . . . 1 . . . . 1 . . . . 3 . . . 2 . . . . . . . 2 . 3 Highest Loss Streak 13 | . . . 1 . 3 . . 1 . . . . 9 1 . . 13 2 . . . . 1 1 3 2 11 To Critical Strikes . | . . . . . . . . . . . . . . . . . . . . . . . . . . . . Average Slot Usage (%) 89 | . 100 100 99 99 99 100 100 93 100 100 100 100 86 77 77 76 85 85 93 94 91 89 84 79 86 78 77 Engine 2 | . 14 14 10 11 9 . . . . . . . . . . . . . . . . . . . . . . Core 2 | . . . . . 1 11 11 6 6 6 6 6 3 1 5 . . . . . . . . 3 . . . Reactor 2 | . . . . . . . . . . . . . 1 3 . 4 5 5 5 5 5 5 4 3 7 7 7 Treads 19 | . 28 28 33 32 32 22 32 . . . . . 8 23 20 16 21 . . . . . . . 8 12 12 Flight 3 | . . . . . . . . 33 33 33 33 33 19 . . . . 26 26 26 23 21 19 14 . . . Device 13 | . 14 14 13 17 10 11 11 17 13 13 13 13 7 10 11 11 6 11 21 21 21 21 16 10 17 16 18 Storage 7 | . 14 14 11 11 11 11 11 6 6 6 6 6 5 5 5 5 4 . . . . . 1 4 4 4 4 Processor 1 | . . . . . . . . 5 6 6 6 6 3 . . . . 4 5 5 5 5 9 10 8 4 4 Hackware 9 | . . . . . . . . 13 13 13 13 13 19 11 11 11 11 26 26 26 26 26 23 20 18 22 17 Protection 7 | . . . 8 3 10 11 10 1 6 6 6 6 4 6 10 11 19 3 . . . . . . 3 2 3 Energy Cannon 4 | . 11 28 12 10 10 7 . . . . . . 1 4 1 . 4 . . . . . . . 1 3 1 Ballistic Gun 5 | . 10 . 9 11 11 9 . . . . . . . 4 7 11 3 . . . . . . . 2 . . Impact Weapon 1 | . . . . . . 3 10 . . . . . . . . . . . . . . . . . . . . Special Melee Weapon 1 | . . . . . . 1 11 . . 1 6 5 3 . . . . 3 4 5 4 5 4 3 . . . Peak Build Rating 204 | 7 13 19 24 26 28 28 30 54 49 52 48 51 104 111 127 134 134 121 125 125 130 128 149 158 179 198 204 Average Rating 83 | 5 10 13 21 24 23 27 25 49 49 48 48 48 65 107 113 133 119 105 123 124 125 127 137 143 166 174 171 On Entrance 80 | . 7 13 14 22 25 28 27 30 49 49 48 48 48 104 106 127 134 89 121 125 124 128 128 135 155 169 196 Naked Turns . | . . . . . . . . . . . . . . . . . . . . . . . . . . . . Heaviest Build 203 | 15 56 63 63 103 106 102 104 32 25 31 25 26 128 141 139 141 147 35 27 29 29 28 37 44 183 203 163 Greatest Support 245 | 40 40 40 69 63 60 40 60 26 25 25 25 25 208 208 230 235 235 46 46 37 40 40 45 45 230 245 245 Greatest Overweight (x) 50 | . 1 1 1 2 2 2 6 1 . 1 . 1 . . . 46 1 . . . . 1 1 1 46 50 1 Average Overweight (x) . | . . 1 . . 1 2 1 . . . . . . . . 25 . . . . . . . . . . . Largest Inventory Capacity 25 | 8 20 20 20 25 25 25 25 25 10 10 10 10 25 25 25 25 25 5 5 5 5 5 10 10 25 25 25 Average Capacity 21 | 7 17 20 20 23 25 25 25 10 10 10 10 10 13 25 25 25 24 5 5 5 5 5 7 10 23 25 25 Most Carried 25 | 5 20 20 20 25 25 25 25 23 10 10 10 10 17 25 25 25 25 5 5 5 5 5 10 10 25 25 25 Average Carried 20 | 2 14 19 19 23 24 25 24 10 10 9 10 9 10 22 24 24 23 4 4 4 4 5 6 9 21 24 22 Final Capacity 25 | 8 20 20 20 25 25 25 25 10 10 10 10 10 25 25 25 25 5 5 5 5 5 5 10 10 25 25 25 Final Carried 25 | 5 20 20 20 25 25 25 24 10 10 10 10 10 16 24 25 25 5 5 5 5 5 5 9 10 25 25 14 Class Distribution -------------------- 32% | Mutant 31% | Scavenger-Mutant 12% | Hacker-Mutant 6% | Hacker-Sprinter 6% | Wizard-Mutant 4% | Wizard-Sprinter 4% | Commander-Mutant Dominant Class ---------------- Mutant | -10/Materials Mutant | -10/Mines Mutant | -9/Materials Mutant | -9/Storage Mutant | -9/Garrison Scavenger-Mutant | -9/Recycling Mutant | -9/Scraptown Hacker-Sprinter | -6/Factory Hacker-Sprinter | -6/Lower Caves Hacker-Sprinter | -6/Lower Caves Hacker-Sprinter | -6/Data Miner Hacker-Sprinter | -5/Proximity Caves Hacker-Mutant | -5/Factory Commander-Mutant | -5/Extension Commander-Mutant | -5/Cetus Scavenger-Mutant | -5/Archives Scavenger-Mutant | -5/Hub_04(d) Wizard-Sprinter | -4/Factory Wizard-Sprinter | -4/Upper Caves Wizard-Sprinter | -4/Upper Caves Wizard-Sprinter | -4/Warlord Wizard-Sprinter | -3/Proximity Caves Wizard-Sprinter | -3/Research Hacker-Mutant | -3/Testing Hacker-Mutant | -2/Research Wizard-Mutant | -2/Quarantine Hacker-Mutant | -2/Section 7 Resources | -11 -10 -10 -9 -9 -9 -9 -9 -6 -6 -6 -6 -5 -5 -5 -5 -5 -5 -4 -4 -4 -4 -3 -3 -3 -2 -2 -2 ----------- Run | Yrd Mat Min Mat Sto Gar Rec Scr Fac Low Low Dat Pro Fac Ext Cet Arc Hub Fac Upp Upp War Pro Res Tes Res Qua Sec Matter Collected 10003 | 270 272 45 658 309 433 97 134 495 . 145 . 165 495 544 172 547 561 160 275 25 140 20 165 160 1940 976 800 Remotely 102 | . . . . . . . . . . . . . . . . . . . . . . . . . . . 102 Salvage Created 18451 | 216 703 317 1770 804 726 469 . 618 . 189 . 100 763 594 239 409 1699 205 125 . . . 308 335 3444 2461 1957 Parts 941 | 16 45 19 113 36 41 10 . 41 . 7 . 9 44 32 11 35 68 1 . . . . 7 12 175 145 74 Haulers Intercepted 17 | . . . 6 2 . . . 1 . . . . . . . . 5 . . . . . . 2 1 . . Recyclers Shooed 11 | . . . . 2 . . . 1 . . . . 1 . . . 1 1 . . . . 2 . 3 . . Parts Field Recycled . | . . . . . . . . . . . . . . . . . . . . . . . . . . . . Retrieved Matter . | . . . . . . . . . . . . . . . . . . . . . . . . . . . . Parts Self-Destructed 18 | . . . . . . . . . . 2 . 7 . . . . . . 9 . . . . . . . . Prevented 3 | . . . . . . . . . . . . . . . . . . . 3 . . . . . . . . Kills | -11 -10 -10 -9 -9 -9 -9 -9 -6 -6 -6 -6 -5 -5 -5 -5 -5 -5 -4 -4 -4 -4 -3 -3 -3 -2 -2 -2 ------- Run | Yrd Mat Min Mat Sto Gar Rec Scr Fac Low Low Dat Pro Fac Ext Cet Arc Hub Fac Upp Upp War Pro Res Tes Res Qua Sec Combat Hostiles Destroyed 229 | . 12 1 27 14 21 3 . . . 3 . 5 15 9 3 . 14 1 . . . . 1 1 40 37 22 Melee 9 | . . . . . . . . . . . . 1 . . . . . . . . . . . 1 2 2 3 Guns 40 | . 2 . 4 2 5 1 . . . . . . 2 1 3 . 2 1 . . . . . . 17 . . Cannons 120 | . 6 1 21 8 10 1 . . . . . . 8 4 . . 7 . . . . . 1 . 18 23 12 AOE 41 | . 3 . 2 3 5 . . . . 3 . 4 5 4 . . 1 . . . . . . . 1 7 3 Classes Destroyed 21 | 3 3 1 3 2 1 . . . . . . 1 1 . 1 . 3 . . . . . . 1 . . 1 Worker 23 | 1 2 . 3 2 . . . 3 . . . . . 1 . . 6 . . . . . . 2 1 2 . Builder 16 | . 2 1 . . . . . 2 . . . . . 1 . . 3 . . . . . . . 3 3 1 Tunneler 13 | 4 . 1 1 . . . . 3 . . . . . 2 . . 1 . . . . . . . 1 . . Hauler 17 | . . . 6 2 . . . 1 . . . . . . . . 5 . . . . . . 2 1 . . Recycler 27 | 1 3 1 3 1 . 4 . 2 . . . . 1 1 . . 1 1 . . . . 2 . 5 . 1 Mechanic 1 | . . . . . . . . . . . . . . . . . . . . . . . . 1 . . . Operator 11 | . . . 2 1 . . . . . . . . . . . 6 . . . . . . . . . 2 . Drone 1 | . . . . . . . . . . . . . . . 1 . . . . . . . . . . . . Watcher 8 | . 1 . 2 . . . . 3 . . . . . . . . 1 . . . . . . . 1 . . Swarmer 45 | . . . 7 3 4 . . . . 3 . 4 . 5 . . . . . . . . . . 8 11 . Cutter 4 | . . . . . . . . . . . . . 4 . . . . . . . . . . . . . . Grunt 68 | . 12 1 11 4 11 . . . . . . . 6 2 . . 5 . . . . . . . 5 3 8 Brawler 1 | . . . . 1 . . . . . . . . . . . . . . . . . . . . . . . Duelist 3 | . . . . 1 . . . . . . . . 2 . . . . . . . . . . . . . . Protector 1 | . . . . . . . . . . . . . . . . . 1 . . . . . . . . . . Sentry 31 | . . 1 9 5 1 3 . . . . . . . 2 . . 3 . . . . . . . 5 . 2 Specialist 5 | . . . . . . . . . . . . . . . . . 2 . . . . . . . . 3 . Hunter 20 | . . . . . . . . . . . . 1 2 . . . 2 . . . . . 1 1 5 3 5 Programmer 42 | . . . . . 5 . . . . . . . 1 . . . . 1 . . . . . . 16 14 5 Heavy 2 | . . . . . . . . . . . . . . . . . 1 . . . . . . . 1 . . Cetus Guard 3 | . . . . . . . . . . . . . . . 3 . . . . . . . . . . . . Enhanced Grunt 1 | . . . . . . . . . . . . . . . . 1 . . . . . . . . . . . Lightning 3 | . . . . . . . . . . . . . . . . . . . . . . . . . . 3 . Alpha 7 2 | . . . . . . . . . . . . . . . . . . . . . . . . . . . 2 Packrat 2 | . . . . . . . . . . 2 . . . . . . . . . . . . . . . . . Savage 1 | . . . . . . . . . . . . . . . . 1 . . . . . . . . . . . Butcher 2 | . . . . . . . . . . . . . . . . . . . 2 . . . . . . . . Best Kill Streak 13 | 4 6 1 4 4 3 3 . 3 . 3 . 4 3 6 2 1 7 1 . . . . 1 3 6 13 6 Combat Bots Only 11 | . 3 1 4 3 3 2 . . . 3 . 4 3 6 2 . 4 1 . . . . 1 1 4 11 6 Max Kills in Single Turn 4 | 1 2 1 2 2 2 1 . 1 . 1 . 2 3 2 2 1 4 1 1 . . . 1 1 2 2 1 Gunslinging . | . . . . . . . . . . . . . . . . . . . . . . . . . . . . Exploded 3 | . 1 . 2 2 2 . . . . 1 . 2 3 2 . . 1 . . . . . . . 1 2 1 Melee 1 | . . . . . . . . . . . . 1 . . . . . . . . . . . 1 1 1 1 Uniques/NPCs Destroyed 1 | . . 1 . . . . . . . . . . . . . . . . . . . . . . . . . YI-UF0 (-10/Mines) Combat | -11 -10 -10 -9 -9 -9 -9 -9 -6 -6 -6 -6 -5 -5 -5 -5 -5 -5 -4 -4 -4 -4 -3 -3 -3 -2 -2 -2 -------- Run | Yrd Mat Min Mat Sto Gar Rec Scr Fac Low Low Dat Pro Fac Ext Cet Arc Hub Fac Upp Upp War Pro Res Tes Res Qua Sec Hostile Shots Fired 2587 | . 42 2 98 24 85 10 . 40 3 4 . 2 80 61 39 . 309 120 10 1 12 14 55 163 345 441 627 Missed 704 | . 12 2 17 5 23 4 . 20 1 2 . 1 24 16 12 . 71 65 6 1 10 5 29 79 83 82 134 Damage Taken 37998 | . 352 . 967 210 681 89 . 225 33 48 . 12 1264 1060 641 . 7293 992 51 . 32 190 667 1342 5924 7223 8702 Core 2969 | . 43 . 106 47 24 14 . 45 15 5 . . 103 46 28 . 326 146 . . 16 23 362 279 261 286 794 Absorbed by Shields 2155 | . . . 47 . 217 . . . . . . . . . 99 . . . . . . . . . 136 1143 513 Reduced by Siege Mode 3985 | . . . . . . . . . . . . . 137 104 29 . 604 . . . . . . . 413 1135 1563 Redirected to Shielding 461 | . . . . . . . . . . . . . . . . . . . . . . . . 17 167 135 142 Ignored by Resistances 3472 | . . . . . . . . . . . . . . . . . . . . . . . . 202 697 1425 1148 Regen/Repaired (Parts) 3822 | . . . 249 . . . 338 19 . . . . . . . . . . . . 19 . . 71 1673 371 1082 Core Remaining (%) 72 | 100 . 82 . . . . 52 . . . . 92 . . . . 49 . . . . 83 . 50 . . . Volleys Fired 1054 | 9 42 6 103 34 77 11 . 5 . 3 . 3 48 22 13 37 68 25 6 . . 7 18 3 162 167 185 Largest 2 | 2 2 2 2 2 2 2 . 1 . 1 . 1 2 2 2 2 2 2 1 . . 1 1 1 2 2 1 Hottest 240 | 80 112 112 136 91 91 91 . 85 . 70 . 70 120 120 123 68 171 240 80 . . 80 94 60 233 240 120 Shots Fired 1573 | 18 74 14 202 66 117 21 . 5 . 3 . 3 68 41 26 69 120 26 6 . . 7 18 3 304 194 168 Gun 618 | 18 36 . 64 32 42 10 . . . . . . 20 19 17 69 48 24 6 . . 7 14 . 192 . . Cannon 890 | . 28 13 137 32 70 11 . 5 . . . . 44 17 9 . 63 2 . . . . 4 3 112 181 159 Launcher 60 | . 5 1 1 2 5 . . . . 3 . 3 4 5 . . 9 . . . . . . . . 13 9 Special 5 | . 5 . . . . . . . . . . . . . . . . . . . . . . . . . . Kinetic 501 | . 16 . 64 32 42 10 . . . . . . 20 19 17 69 65 2 . . . . . 3 142 . . Thermal 890 | . 5 . 121 32 70 11 . 5 . . . . 44 17 9 . 45 24 6 . . 7 14 . 160 180 140 Explosive 24 | . 5 1 1 2 5 . . . . 3 . 3 4 . . . . . . . . . . . . . . Electromagnetic 158 | 18 48 13 16 . . . . . . . . . . 5 . . 10 . . . . . 4 . 2 14 28 Robot Hit Streak 26 | 4 8 9 21 17 12 5 . . . 1 . . 15 9 5 8 18 5 10 . . . 5 . 22 19 26 Robot Miss Streak 5 | 3 3 1 5 3 3 2 . . . 2 . . 4 4 2 4 3 1 . . . . 1 . 5 4 5 Penetration Max 2 | . . . . . . . . . . . . . . . 2 1 1 . . . . . . . 1 . . Secondary Targets 2 | . 1 . . . . . . . . . . . . . . . . . . . . . . . 1 . . Max Gunslinging Chain 1 | . 1 . . . . . . . . . . . . . . . . . . . . . . . 1 . . Capacitor 259 | . . . . . . . . . . . . . . . . . . . . . . . . . . 105 154 Shots Hit Robots 1109 | 11 38 12 124 41 65 17 1 23 . 3 1 1 50 21 15 43 82 13 5 . 6 . 10 25 221 138 143 Core Hits 541 | 7 23 9 51 22 29 8 . 13 . 5 . 9 35 19 7 27 56 4 2 . . . 6 8 100 57 44 Critical Kills 31 | . . . . 2 1 2 . . . . . . 2 1 2 6 2 . . . . . . . 8 4 1 Critical Parts Destroyed 23 | . . . . . 2 . . . . . . . . 1 2 9 4 . . . . . . . 5 . . Critical Strikes 69 | 2 1 . . 2 3 2 . 1 . . . . 2 2 4 15 7 . . . . . . 1 18 4 5 Meltdown 9 | . . . . 2 1 1 . . . . . . . . . . . . . . . . . . . 4 1 Destroy 45 | . . . . . 2 . . . . . . . 2 2 4 15 6 . . . . . . . 14 . . Blast 5 | . . . . . . . . . . . . . . . . . 1 . . . . . . . 4 . . Corrupt 6 | 2 1 . . . . . . . . . . . . . . . . . . . . . . . . . 3 Smash 1 | . . . . . . 1 . . . . . . . . . . . . . . . . . . . . . Sever 2 | . . . . . . . . 1 . . . . . . . . . . . . . . . . . . 1 Impale 1 | . . . . . . . . . . . . . . . . . . . . . . . . 1 . . . Melee Attacks 196 | . . . . . 4 4 1 47 2 6 1 6 12 . . . . 1 . . 6 . 10 45 24 5 22 Impact 6 | . . . . . 4 2 . . . . . . . . . . . . . . . . . . . . . Slashing 143 | . . . . . . . . 47 2 6 . 6 6 . . . . . . . . . . 25 24 5 22 Piercing 29 | . . . . . . . . . . . . . . . . . . . . . . . 10 19 . . . Sneak Attacks 48 | . . . . . . 4 1 13 . 2 1 1 8 . . . . 1 . . 6 . 1 5 3 2 . Combat Hostiles 7 | . . . . . . . . . . . . 1 4 . . . . . . . . . . . 1 1 . Follow-up Attacks . | . . . . . . . . . . . . . . . . . . . . . . . . . . . . Damage Inflicted 43087 | 195 1033 323 2666 901 1583 370 . 1269 . 307 . 272 1986 1295 523 811 4863 414 131 . . . 450 1338 8076 7401 6880 Guns 8966 | 150 297 . 651 267 455 110 . . . . . . 377 268 347 811 827 371 131 . . . 203 . 3701 . . Cannons 21464 | . 387 237 1883 503 865 127 . . . . . . 971 409 176 . 1564 43 . . . . 175 . 3159 6031 4934 Explosions 6700 | 45 349 86 111 123 263 . . . . 171 . 207 435 546 . . 2426 . . . . . . . 199 1031 708 Melee 5614 | . . . . . . 130 . 1269 . 136 . 65 170 . . . . . . . . . 72 1338 857 339 1238 Ramming 343 | . . . 21 8 . 3 . . . . . . 33 72 . . 46 . . . . . . . 160 . . Kinetic 7534 | . 114 . 651 267 455 110 . . . . . . 377 268 347 811 1274 43 . . . . . . 2817 . . Thermal 21572 | 45 71 . 1556 503 865 127 . . . . . . 971 582 176 . 1397 371 131 . . . 203 . 3998 6103 4473 Explosive 1873 | . 278 86 111 123 263 . . . . 171 . 207 435 . . . . . . . . . . . 199 . . Electromagnetic 6151 | 150 570 237 327 . . . . . . . . . . 373 . . 2146 . . . . . 175 . 45 959 1169 Impact 130 | . . . . . . 130 . . . . . . . . . . . . . . . . . . . . . Slashing 4743 | . . . . . . . . 1269 . 136 . 65 170 . . . . . . . . . . 669 857 339 1238 Piercing 741 | . . . . . . . . . . . . . . . . . . . . . . . 72 669 . . . Highest Corruption 56 | . . 9 . . 7 7 . 1 . . . . 7 10 7 12 49 1 1 1 1 . . . 5 42 56 Average Corruption 14 | . . 5 . . 4 7 . 1 . . . . 6 8 7 6 4 1 1 1 1 . . . 2 33 45 Corruption Purged 20 | . . . . . . . . 1 . . . . . 3 . 16 . . . . . . . . . . . Corruption Blocked 20 | . . . . . . . . . . . . . . . . . . . . . . . . 3 17 . . Effects 375 | . . 26 . . 6 59 . . . . . . 11 57 13 11 9 1 3 . . . . . 6 94 79 Message Errors 69 | . . 6 . . 1 14 . . . . . . 2 11 1 1 . . 1 . . . . . 1 18 13 Matter Fused 84 | . . 7 . . 1 15 . . . . . . 5 11 3 7 3 . 1 . . . . . 1 15 15 Heat Flow Errors 38 | . . 2 . . . 6 . . . . . . 1 8 2 1 2 . 1 . . . . . 1 9 5 Energy Discharges 41 | . . 2 . . 1 10 . . . . . . 1 4 2 . . 1 . . . . . . . 14 6 Parts Rejected 9 | . . . . . 1 . . . . . . . . . 1 . . . . . . . . . . 2 5 Parts Fused 1 | . . . . . . . . . . . . . . 1 . . . . . . . . . . . . . Data Loss (minor) 54 | . . 7 . . 1 8 . . . . . . 1 16 2 1 1 . . . . . . . 1 9 7 Data Loss (major) 14 | . . 1 . . . 4 . . . . . . . 1 1 1 . . . . . . . . 1 4 1 Misfires 10 | . . 1 . . 1 . . . . . . . . 3 . . 1 . . . . . . . . 3 1 Alerts 6 | . . . . . . 1 . . . . . . . 1 1 . . . . . . . . . . 2 1 Misdirections 12 | . . . . . . . . . . . . . . . . . 1 . . . . . . . . 4 7 Weapon Failures 37 | . . . . . . 1 . . . . . . 1 1 . . 1 . . . . . . . 1 14 18 Overload Shots 11 | . . . . . . . . . . . . . . . . . . 11 . . . . . . . . . Overflow Damage 1539 | . 15 . 26 . 36 50 . 173 . 113 . . 88 36 . . 72 . . . . . . 93 223 431 183 Projectiles 678 | . 15 . 11 . 36 . . . . . . . 44 11 . . . . . . . . . . 92 309 160 Explosions 212 | . . . 15 . . . . . . . . . . 10 . . 72 . . . . . . . 55 60 . Melee 649 | . . . . . . 50 . 173 . 113 . . 44 15 . . . . . . . . . 93 76 62 23 Knockbacks 15 | . . . 1 . . . . . . . . . 1 1 . . 1 . . . . . . . 11 . . Impact 4 | . . . 1 . . . . . . . . . 1 1 . . . . . . . . . . 1 . . Kinetic 10 | . . . . . . . . . . . . . . . . . 1 . . . . . . . 9 . . Secondary 1 | . . . . . . . . . . . . . . . . . . . . . . . . . 1 . . Self-Inflicted Damage 855 | . 16 1 . . 18 . . . . 17 . . . 129 . . 459 . . . . . . . . 162 53 Shots 36 | . 1 1 . . 2 . . . . 1 . . . 6 . . 14 . . . . . . . . 5 6 Rammed 22 | . . 1 1 1 . 1 . . . . . . 2 3 . 1 4 . . . . . . . 8 . . Targets Rammed 26 | . . 1 1 1 . 1 . . . . . . 2 5 . 1 4 . . . . . . . 10 . . Kicked 1 | . . . . . . . . . . . . . . . . . . . . . . . . . 1 . . Crushed 3 | . . . . . . . . . . . . . . 2 . . . . . . . . . . 1 . . Highest Temperature 496 | 90 240 146 262 10 360 169 . 114 . 72 . 72 131 243 246 249 153 496 157 . . 6 106 9 403 335 435 Average Temperature 89 | 35 64 44 48 10 94 69 . 48 . 30 . 29 37 105 105 130 19 148 104 . . 6 47 7 125 76 149 Received Heat Transfer 3034 | . 180 . 372 96 44 36 . 99 . . . . 171 162 62 . 603 33 . . 9 39 76 193 220 143 496 Effects 12 | . . . . . 1 . . . . . . . . 2 . . . . . . . . . . 3 1 5 Shutdowns 5 | . . . . . . . . . . . . . . . . . . . . . . . . . 1 1 3 Energy Bleed 2 | . . . . . . . . . . . . . . . . . . . . . . . . . 2 . . Interference 2 | . . . . . . . . . . . . . . 2 . . . . . . . . . . . . . Short Circuit 1 | . . . . . 1 . . . . . . . . . . . . . . . . . . . . . . Damage (minor) 2 | . . . . . . . . . . . . . . . . . . . . . . . . . . . 2 Siege Activations 45 | . . . . . . . . . . . . . 3 3 1 . 4 . . . . . . . 15 11 8 Total Turns 1021 | . . . . . . . . . . . . . 55 50 8 . 104 . . . . . . . 216 303 285 Longest Duration 62 | . . . . . . . . . . . . . 21 34 8 . 58 . . . . . . . 31 51 62 Robots Corrupted 12 | . 1 1 . . . . . . . . . . . 1 . . 5 . . . . . . . . 1 3 Combat Hostiles 9 | . 1 . . . . . . . . . . . . . . . 4 . . . . . . . . 1 3 Parts Fried 40 | . 4 1 3 . . 1 . . . . . . . 3 . . 9 . . . . . 2 . 2 7 8 Impact Corruptions 3 | . . . . . . 1 . . . . . . . 1 . . . . . . . . . . 1 . . Robots Melted 11 | . . . . 2 1 1 . . . . . . . . . . . . . . . . . . 2 4 1 Combat Hostiles 10 | . . . . 1 1 1 . . . . . . . . . . . . . . . . . . 2 4 1 Parts Melted 51 | . . . 1 5 3 1 . . . . . . 1 . . . . 1 . . . . . . 16 14 9 Heat Transferred 21448 | 50 . . 2664 851 1369 222 . . . . . . 999 625 185 . 1225 407 185 . . . 222 . 3959 4698 3787 Parts Sabotaged . | . . . . . . . . . . . . . . . . . . . . . . . . . . . . Parts Stolen . | . . . . . . . . . . . . . . . . . . . . . . . . . . . . Parts Stripped . | . . . . . . . . . . . . . . . . . . . . . . . . . . . . Power Chain Reactions 12 | 1 1 . . . . . . . . . . . . 2 . . 4 . . . . . . . . 3 1 Alert | -11 -10 -10 -9 -9 -9 -9 -9 -6 -6 -6 -6 -5 -5 -5 -5 -5 -5 -4 -4 -4 -4 -3 -3 -3 -2 -2 -2 ------- Run | Yrd Mat Min Mat Sto Gar Rec Scr Fac Low Low Dat Pro Fac Ext Cet Arc Hub Fac Upp Upp War Pro Res Tes Res Qua Sec Peak Influence 1426 | 30 279 120 471 368 1426 696 . 412 . . . . 538 583 482 316 774 711 . . . . 329 360 911 885 672 Initial 641 | . 19 75 1 198 104 641 . . . . . . 375 263 218 112 . 315 . . . . 60 65 162 512 293 Average 255 | 11 127 27 241 252 710 504 . 126 . . . . 352 320 357 25 204 453 . . . . 176 186 302 396 374 Maximum Alert Level 4 | . 1 . 2 1 4 2 . 2 . . . . 2 2 2 1 3 3 . . . . 1 1 3 3 2 Low Security (%) 49 | 100 95 100 47 19 9 . . 76 . . . . 11 19 3 94 63 . . . . . 58 59 45 14 . Level 1 25 | . 4 . 26 80 14 19 . 21 . . . . 50 59 58 5 21 40 . . . . 41 40 28 32 66 Level 2 20 | . . . 25 . 26 80 . 2 . . . . 37 20 37 . 8 59 . . . . . . 21 50 33 Level 3 3 | . . . . . 39 . . . . . . . . . . . 6 . . . . . . . 5 2 . Level 4 . | . . . . . 11 . . . . . . . . . . . . . . . . . . . . . . Level 5 . | . . . . . . . . . . . . . . . . . . . . . . . . . . . . High Security . | . . . . . . . . . . . . . . . . . . . . . . . . . . . . Max Security . | . . . . . . . . . . . . . . . . . . . . . . . . . . . . Squads Dispatched 69 | . 4 . 2 5 . . . 2 . . . . 8 1 . . 4 6 . . . . 5 5 14 9 4 Investigation 19 | . 4 . 1 . . . . 1 . . . . 3 . . . . 3 . . . . 1 3 3 . . Extermination 16 | . . . . . . . . 1 . . . . 2 . . . . . . . . . . . 6 4 3 Reinforcement 28 | . . . 1 2 . . . . . . . . 3 1 . . 4 3 . . . . 4 2 5 2 1 Assault . | . . . . . . . . . . . . . . . . . . . . . . . . . . . . Garrison 6 | . . . . 3 . . . . . . . . . . . . . . . . . . . . . 3 . Intercept . | . . . . . . . . . . . . . . . . . . . . . . . . . . . . Searches Triggered 2 | . . . . . . . . 1 . . . . 1 . . . . . . . . . . . . . . Data Miner Redirects 1 | . . . . . . . . . . . . . . . . . . . . . . . . . 1 . . Construction Impeded 5 | . . . . . . . . . . . . . 1 1 . . 1 . . . . . . . 1 1 . Haulers Reinforced 1 | . . . . . . . . . . . . . . . . . 1 . . . . . . . . . . Active Scanning Responses . | . . . . . . . . . . . . . . . . . . . . . . . . . . . . Cargo Convoy Interrupts . | . . . . . . . . . . . . . . . . . . . . . . . . . . . . Stealth | -11 -10 -10 -9 -9 -9 -9 -9 -6 -6 -6 -6 -5 -5 -5 -5 -5 -5 -4 -4 -4 -4 -3 -3 -3 -2 -2 -2 --------- Run | Yrd Mat Min Mat Sto Gar Rec Scr Fac Low Low Dat Pro Fac Ext Cet Arc Hub Fac Upp Upp War Pro Res Tes Res Qua Sec Distress Signals 24 | . . . 1 1 . 1 . 2 . . . . . 1 2 . 1 1 . . 1 . 5 1 1 3 3 Communications Jammed 143 | . . . . . . . . . . . . . . . . . 1 47 . . . . 19 15 61 . . Distress Signals 97 | . . . . . . . . . . . . . . . . . 1 22 . . . . . 15 59 . . Times Spotted 574 | . 17 1 40 12 27 3 . 42 1 5 . 5 31 29 11 20 40 43 7 1 20 6 23 40 60 57 33 Peak Tracking Total 18 | . 4 2 3 3 4 2 . 7 1 4 . 1 9 10 5 . 13 16 5 1 18 6 8 18 5 7 6 Tactical Retreats 57 | . 1 . 3 . . . . 12 1 . . . 7 2 . . . 9 1 . . 2 7 6 3 2 1 Traps | -11 -10 -10 -9 -9 -9 -9 -9 -6 -6 -6 -6 -5 -5 -5 -5 -5 -5 -4 -4 -4 -4 -3 -3 -3 -2 -2 -2 ------- Run | Yrd Mat Min Mat Sto Gar Rec Scr Fac Low Low Dat Pro Fac Ext Cet Arc Hub Fac Upp Upp War Pro Res Tes Res Qua Sec Traps Triggered 33 | . 1 . 1 . 15 . . 5 . . . . . 1 . . 2 . . . . . 2 . 2 4 . Indirectly 3 | . . . . . . . . . . . . . . . . . . . . . . . . . . 3 . Trap Hack Attempts 9 | . . . 9 . . . . . . . . . . . . . . . . . . . . . . . . Triggered . | . . . . . . . . . . . . . . . . . . . . . . . . . . . . Disarmed 1 | . . . 1 . . . . . . . . . . . . . . . . . . . . . . . . Reprogrammed 10 | . . . . . . . . . . . . . . . . . . . . . . . . 10 . . . Reused 2 | . . . . . . . . . . . . . . . . . . . . . . . . 2 . . . Traps Extracted . | . . . . . . . . . . . . . . . . . . . . . . . . . . . . Installed . | . . . . . . . . . . . . . . . . . . . . . . . . . . . . Triggered 12 | . . . . . . . . . . . . . . . . . 1 . . . 7 1 . 2 . 1 . Machines | -11 -10 -10 -9 -9 -9 -9 -9 -6 -6 -6 -6 -5 -5 -5 -5 -5 -5 -4 -4 -4 -4 -3 -3 -3 -2 -2 -2 ---------- Run | Yrd Mat Min Mat Sto Gar Rec Scr Fac Low Low Dat Pro Fac Ext Cet Arc Hub Fac Upp Upp War Pro Res Tes Res Qua Sec Machines Disabled 62 | . 3 . 4 1 14 1 . . . . . . 1 3 . 2 16 . . . . . . 3 2 6 6 Max in Single Turn 7 | . 2 . 1 1 1 1 . . . . . . 1 1 . 1 7 . . . . . . 1 1 1 1 Garrison Access 7 | . . . . . . . . 3 . . . . 1 . . . 1 1 . . . . 1 . . . . Garrison Relay 8 | . . . . . 8 . . . . . . . . . . . . . . . . . . . . . . Network Hub 4 | . . . . . . . . . . . . . . . . . 4 . . . . . . . . . . Machines Repaired . | . . . . . . . . . . . . . . . . . . . . . . . . . . . . Machines Dismantled 2 | . . . . 1 1 . . . . . . . . . . . . . . . . . . . . . . Machines Sabotaged . | . . . . . . . . . . . . . . . . . . . . . . . . . . . . Overloaded Fab Kills . | . . . . . . . . . . . . . . . . . . . . . . . . . . . . Hacking | -11 -10 -10 -9 -9 -9 -9 -9 -6 -6 -6 -6 -5 -5 -5 -5 -5 -5 -4 -4 -4 -4 -3 -3 -3 -2 -2 -2 --------- Run | Yrd Mat Min Mat Sto Gar Rec Scr Fac Low Low Dat Pro Fac Ext Cet Arc Hub Fac Upp Upp War Pro Res Tes Res Qua Sec Machines Accessed 140 | . 3 1 13 4 4 10 6 23 . 1 4 . 8 7 1 . 5 10 . . 5 . 5 8 12 8 2 Terminals 72 | . 1 . 10 3 4 5 . 10 . 1 . . 2 7 1 . 4 5 . . . . 1 5 6 6 1 Fabricators 17 | . . . . . . . . 4 . . . . 4 . . . . 3 . . . . 1 2 3 . . Repair Stations 9 | . . . 2 . . . . 2 . . . . . . . . . . . . . . . 1 2 1 1 Recycling Units 14 | . 2 . . . . 5 . 4 . . . . 1 . . . . . . . . . 1 . 1 . . Scanalyzers 4 | . . . 1 . . . . . . . . . . . . . . 1 . . . . 1 . . 1 . Garrison Access 8 | . . . . 1 . . . 3 . . . . 1 . . . 1 1 . . . . 1 . . . . Total Hacks 601 | . 11 1 42 9 5 25 30 57 . 1 29 . 28 31 2 . 16 71 . . 12 . 17 49 72 68 25 Successful 415 | . 7 1 24 4 1 14 30 39 . 1 29 . 21 16 1 . 5 52 . . 12 . 13 32 53 47 13 Failed 185 | . 3 . 18 5 4 11 . 18 . . . . 7 15 1 . 11 19 . . . . 4 17 19 21 12 Catastrophic 12 | . 1 . 1 . 1 . . . . . . . 1 3 . . 1 . . . . . . 1 1 2 . Database Lockouts 1 | . 1 . . . . . . . . . . . . . . . . . . . . . . . . . . Manual 260 | . 7 . 28 5 . 17 . 30 . . . . 13 24 1 . 10 43 . . 1 . 4 21 26 30 . Terminals 346 | . 6 . 33 8 5 12 . 28 . 1 . . 6 31 2 . 13 46 . . . . 5 40 41 61 8 Fabricators 72 | . . . . . . . . 14 . . . . 19 . . . . 14 . . . . 5 7 13 . . Repair Stations 45 | . . . 6 . . . . 3 . . . . . . . . . . . . . . . 2 12 5 17 Recycling Units 35 | . 5 . . . . 13 . 8 . . . . 2 . . . . . . . . . 1 . 6 . . Scanalyzers 20 | . . . 3 . . . . . . . . . . . . . . 10 . . . . 5 . . 2 . Garrison Access 11 | . . . . 1 . . . 4 . . . . 1 . . . 3 1 . . . . 1 . . . . Terminal Hacks 218 | . 2 1 7 2 1 1 30 10 . 1 29 . 2 10 1 . 3 25 . . 12 . 3 19 21 32 6 Record 53 | . . . . . . . 29 . . 1 11 . 1 . . . . . . . 10 . . . . 1 . Part Schematic 27 | . . . 1 . . . . 3 . . 8 . 1 . . . . 3 . . . . . 1 1 9 . Robot Schematic 7 | . . . . . . . . . . . 7 . . . . . . . . . . . . . . . . Robot Analysis 4 | . 1 . 1 . . . . . . . . . . . . . . . . . . . . 1 1 . . Prototype ID Bank 9 | . . . . . . 1 . . . . 3 . . 1 . . . 2 . . . . . . 1 1 . Open Door 6 | . . 1 . 1 . . . . . . . . . . 1 . . . . . 2 . . . . 1 . Level Access Points 4 | . . . . . . . . 1 . . . . . . . . . 1 . . . . . 1 . 1 . Branch Access Points 5 | . . . 1 . . . . 1 . . . . . . . . . 1 . . . . 1 . 1 . . Emergency Access Points 6 | . . . 1 . 1 . . 1 . . . . . . . . . 1 . . . . . 2 . . . Terminal Index 7 | . . . 1 . . . . . . . . . . 1 . . . 1 . . . . . 1 1 2 . Fabricator Index 2 | . . . . . . . . . . . . . . . . . . 1 . . . . . . 1 . . Repair Station Index 6 | . . . . . . . . . . . . . . 1 . . . 1 . . . . . . 2 1 1 Recycling Unit Index 4 | . . . . . . . . . . . . . . 1 . . . 1 . . . . . . 1 1 . Scanalyzer Index 1 | . . . . . . . . . . . . . . . . . . 1 . . . . . . . . . Garrison Index 2 | . . . . . . . . . . . . . . . . . . 1 . . . . . . 1 . . Alert Level 14 | . . . 1 . . . . 2 . . . . . 3 . . . 2 . . . . 1 . 1 3 1 Unreport Threat 21 | . . . . 1 . . . 1 . . . . . 2 . . 2 3 . . . . 1 1 3 5 2 Locate Traps 7 | . . . 1 . . . . . . . . . . 1 . . . 1 . . . . . 1 2 1 . Reprogram Traps 3 | . . . . . . . . . . . . . . . . . . . . . . . . 3 . . . Dispatch Records 2 | . . . . . . . . . . . . . . . . . . . . . . . . 1 . 1 . Security Status 1 | . . . . . . . . . . . . . . . . . . . . . . . . . . 1 . Patrol Status 2 | . . . . . . . . . . . . . . . . . . 1 . . . . . . . 1 . Recall Investigation 1 | . . . . . . . . . . . . . . . . . . . . . . . . 1 . . . Recall Reinforcements 4 | . . . . . . . . . . . . . . . . . . 1 . . . . . 1 2 . . Hauler Manifests 5 | . . . . . . . . 1 . . . . . . . . . 1 . . . . . . 2 1 . Registered Components 2 | . . . . . . . . . . . . . . . . . . . . . . . . 1 . . 1 Zone Layout 12 | . 1 . . . . . . . . . . . . . . . 1 2 . . . . . 4 1 2 1 Derelict Proto ID Bank 1 | . . . . . . . 1 . . . . . . . . . . . . . . . . . . . . Fabricator Hacks 35 | . . . . . . . . 6 . . . . 10 . . . . 5 . . . . 2 4 8 . . Network Status 3 | . . . . . . . . 1 . . . . 1 . . . . . . . . . 1 . . . . Load Schematic 17 | . . . . . . . . 2 . . . . 6 . . . . 2 . . . . . 2 5 . . Build 15 | . . . . . . . . 3 . . . . 3 . . . . 3 . . . . 1 2 3 . . Repair Station Hacks 31 | . . . 6 . . . . 2 . . . . . . . . . . . . . . . 2 10 4 7 Scan Component 16 | . . . 3 . . . . 1 . . . . . . . . . . . . . . . 1 5 2 4 Repair 15 | . . . 3 . . . . 1 . . . . . . . . . . . . . . . 1 5 2 3 Recycling Unit Hacks 9 | . 2 . . . . 2 . 2 . . . . . . . . . . . . . . 1 . 2 . . Retrieve Matter 1 | . . . . . . . . . . . . . . . . . . . . . . . . . 1 . . Retrieve Components 8 | . 2 . . . . 2 . 2 . . . . . . . . . . . . . . 1 . 1 . . Scanalyzer 19 | . . . 2 . . . . . . . . . . . . . . 10 . . . . 5 . . 2 . Insert Component 8 | . . . 1 . . . . . . . . . . . . . . 4 . . . . 2 . . 1 . Analyze 11 | . . . 1 . . . . . . . . . . . . . . 6 . . . . 3 . . 1 . Garrison Access Hacks 8 | . . . . 1 . . . 3 . . . . 1 . . . 1 1 . . . . 1 . . . . Unlock Access 1 | . . . . 1 . . . . . . . . . . . . . . . . . . . . . . . Seal Access 7 | . . . . . . . . 3 . . . . 1 . . . 1 1 . . . . 1 . . . . Unauthorized Hacks 94 | . 3 . 9 1 . 10 . 16 . . . . 8 6 . . 1 11 . . . . 1 7 12 9 . Terminals 60 | . 1 . 9 1 . 5 . 8 . . . . 1 6 . . 1 8 . . . . . 5 6 9 . Assimilate 4 | . . . 1 . . . . 2 . . . . . . . . . 1 . . . . . . . . . Botnet 12 | . . . 1 . . . . 1 . . . . 1 1 . . 1 2 . . . . . 1 1 3 . Disrupt 2 | . . . . . . . . . . . . . . . . . . . . . . . . . 1 1 . Operators 6 | . . . 1 . . . . . . . . . . 1 . . . 1 . . . . . 1 1 1 . Skim 36 | . 1 . 6 1 . 5 . 5 . . . . . 4 . . . 4 . . . . . 3 3 4 . Fabricators 20 | . . . . . . . . 5 . . . . 6 . . . . 3 . . . . 1 2 3 . . Prioritize 10 | . . . . . . . . 2 . . . . 2 . . . . 2 . . . . 1 2 1 . . Liberate 1 | . . . . . . . . 1 . . . . . . . . . . . . . . . . . . . Haulers 2 | . . . . . . . . 1 . . . . 1 . . . . . . . . . . . . . . Recompile 7 | . . . . . . . . 1 . . . . 3 . . . . 1 . . . . . . 2 . . Repair Stations . | . . . . . . . . . . . . . . . . . . . . . . . . . . . . Recycling Units 14 | . 2 . . . . 5 . 3 . . . . 1 . . . . . . . . . . . 3 . . Reject 2 | . . . . . . . . 1 . . . . . . . . . . . . . . . . 1 . . Recyclers 2 | . . . . . . . . 1 . . . . . . . . . . . . . . . . 1 . . Mask 3 | . . . . . . . . 1 . . . . 1 . . . . . . . . . . . 1 . . Tunnel 7 | . 2 . . . . 5 . . . . . . . . . . . . . . . . . . . . . Scanalyzers . | . . . . . . . . . . . . . . . . . . . . . . . . . . . . Garrison Access . | . . . . . . . . . . . . . . . . . . . . . . . . . . . . Data Cores Recovered 2 | . . . . . . . . . . . . . . . . . 1 . . . . . . . . 1 . Used 1 | . . . . . . . . . . . . . . . . . . . . . . . . . . 1 . Hacking Detections 91 | . 1 . 11 2 4 7 . 18 . . . . 6 7 2 . 3 7 . . . . 3 7 8 5 . Full Trace Events 5 | . . . . . . . . . . . . . . . . . . 2 . . . . . 2 1 . . Feedback Events . | . . . . . . . . . . . . . . . . . . . . . . . . . . . . Feedback Blocked . | . . . . . . . . . . . . . . . . . . . . . . . . . . . . Robot Schematics Acquired 7 | . . . . . . . . . . . 7 . . . . . . . . . . . . . . . . Robots Built . | . . . . . . . . . . . . . . . . . . . . . . . . . . . . Authchips . | . . . . . . . . . . . . . . . . . . . . . . . . . . . . Time . | . . . . . . . . . . . . . . . . . . . . . . . . . . . . Total Robot Build Rating . | . . . . . . . . . . . . . . . . . . . . . . . . . . . . Part Schematics Acquired 35 | . . . 2 . . . . 3 . . 8 . 1 . . . . 7 . . . . 2 1 1 10 . Parts Built 21 | . . . . . . . . 6 . . . . 3 . . . . 5 . . . . 1 2 4 . . Authchips 6 | . . . . . . . . 1 . . . . 3 . . . . . . . . . . . 2 . . Time 620 | . . . . . . . . 160 . . . . 126 . . . . 78 . . . . 55 140 61 . . Total Part Build Rating 126 | . . . . . . . . 26 . . . . 22 . . . . 30 . . . . 9 13 26 . . Parts Repaired 14 | . . . 3 . . . . 1 . . . . . . . . . . . . . . . 1 4 2 3 Time 688 | . . . 134 . . . . 51 . . . . . . . . . . . . . . . 68 272 50 113 Parts Recycled . | . . . . . . . . . . . . . . . . . . . . . . . . . . . . Recycled Matter . | . . . . . . . . . . . . . . . . . . . . . . . . . . . . Retrieved Matter . | . . . . . . . . . . . . . . . . . . . . . . . . . . . . Retrieved Components 25 | . 15 . . . . 3 . 4 . . . . . . . . . . . . . . 1 . 2 . . Parts Scanalyzed 8 | . . . 1 . . . . . . . . . . . . . . 4 . . . . 2 . . 1 . Part Schematics Acquired 8 | . . . 1 . . . . . . . . . . . . . . 4 . . . . 2 . . 1 . Parts Damaged 1 | . . . . . . . . . . . . . . . . . . . . . . . 1 . . . . Bothacking | -11 -10 -10 -9 -9 -9 -9 -9 -6 -6 -6 -6 -5 -5 -5 -5 -5 -5 -4 -4 -4 -4 -3 -3 -3 -2 -2 -2 ------------ Run | Yrd Mat Min Mat Sto Gar Rec Scr Fac Low Low Dat Pro Fac Ext Cet Arc Hub Fac Upp Upp War Pro Res Tes Res Qua Sec Used RIF Installer . | . . . . . . . . . . . . . . . . . . . . . . . . . . . . Robots Hacked 11 | . . . . . . 1 1 . . . 1 . 2 . . . . 1 . . 5 . . . . . . Non-combat 4 | . . . . . . . . . . . . . 2 . . . . 1 . . 1 . . . . . . Combat 7 | . . . . . . 1 1 . . . 1 . . . . . . . . . 4 . . . . . . Robot Hacks Applied 11 | . . . . . . 1 1 . . . 1 . 2 . . . . 1 . . 5 . . . . . . parse_system 8 | . . . . . . 1 1 . . . 1 . . . . . . . . . 5 . . . . . . find_chute 3 | . . . . . . . . . . . . . 2 . . . . 1 . . . . . . . . . Relay Couplers Released 37 | . . . . . 35 . . . . . . . . . . . 1 1 . . . . . . . . . Machine Destruction 37 | . . . . . 35 . . . . . . . . . . . 1 1 . . . . . . . . . Fabnet Peak Effective % . | . . . . . . . . . . . . . . . . . . . . . . . . . . . . Robots Rewired 20 | . . . . . . . . . . . . . 4 16 . . . . . . . . . . . . . Allies Hacked . | . . . . . . . . . . . . . . . . . . . . . . . . . . . . Hacks Repelled . | . . . . . . . . . . . . . . . . . . . . . . . . . . . . Allies | -11 -10 -10 -9 -9 -9 -9 -9 -6 -6 -6 -6 -5 -5 -5 -5 -5 -5 -4 -4 -4 -4 -3 -3 -3 -2 -2 -2 -------- Run | Yrd Mat Min Mat Sto Gar Rec Scr Fac Low Low Dat Pro Fac Ext Cet Arc Hub Fac Upp Upp War Pro Res Tes Res Qua Sec Total Allies 45 | . . 3 . . 1 . . 2 . . . . 4 29 5 . . 1 . . . . . . . . . Largest Group 24 | . . 3 2 . 1 . . 1 . . . . 4 24 24 11 5 1 . . . . . . . . . Highest-Rated Group 1132 | . . 40 32 . 39 . . 26 . . . . 103 854 1132 782 404 10 . . . . . . . . . Highest-Rated Ally 159 | . . 16 16 . 39 . . 26 . . . . 49 159 159 159 96 10 . . . . . . . . . Total Orders 38 | . . 1 . 1 . . 3 5 . . . . . 14 4 3 . . 2 . . 4 1 . . . . STAY 2 | . . . . . . . . . . . . . . . 1 1 . . . . . . . . . . . FOLLOW 2 | . . . . . . . . . . . . . . . . 1 . . . . . 1 . . . . . EXPLORE 10 | . . . . 1 . . 2 2 . . . . . 2 . . . . 1 . . 1 1 . . . . RETURN 24 | . . 1 . . . . 1 3 . . . . . 12 3 1 . . 1 . . 2 . . . . . Ally Attacks 337 | . . . 33 . 30 . . . . . . . 8 132 72 39 23 . . . . . . . . . . Total Damage 7042 | . . . 379 . 390 . . . . . . . 444 2338 1496 1263 732 . . . . . . . . . . Kills 47 | . . . 6 . 8 . . . . . . . 1 19 8 4 1 . . . . . . . . . . Allies Corrupted . | . . . . . . . . . . . . . . . . . . . . . . . . . . . . Allies Melted 4 | . . . . . . . . . . . . . . . . . 3 . . . 1 . . . . . . Intel | -11 -10 -10 -9 -9 -9 -9 -9 -6 -6 -6 -6 -5 -5 -5 -5 -5 -5 -4 -4 -4 -4 -3 -3 -3 -2 -2 -2 ------- Run | Yrd Mat Min Mat Sto Gar Rec Scr Fac Low Low Dat Pro Fac Ext Cet Arc Hub Fac Upp Upp War Pro Res Tes Res Qua Sec Robot Analysis Total 4 | . 1 . 1 . . . . . . . . . . . . . . . . . . . . 1 1 . . Derelict Logs Recovered 7 | . . 2 . . . . . . 1 2 . . . . . . . . . 2 . . . . . . . Drone Launches 54 | . . 1 . 4 . . 3 16 . . . . . 17 4 1 . . 3 . . 5 . . . . . Drone Recoveries 47 | . . 1 . 2 . . 3 14 . . . . . 17 3 1 . . 3 . . 2 1 . . . . Exploration | -11 -10 -10 -9 -9 -9 -9 -9 -6 -6 -6 -6 -5 -5 -5 -5 -5 -5 -4 -4 -4 -4 -3 -3 -3 -2 -2 -2 ------------- Run | Yrd Mat Min Mat Sto Gar Rec Scr Fac Low Low Dat Pro Fac Ext Cet Arc Hub Fac Upp Upp War Pro Res Tes Res Qua Sec Turns Passed 34658 | 119 1148 1378 2874 892 1912 1989 4350 1106 384 305 27 262 1017 1629 421 6117 916 345 206 117 308 205 403 601 2639 1890 1098 Spaces Moved 20244 | 47 438 560 1273 329 657 603 1730 2599 443 911 92 598 1347 738 202 427 429 833 575 453 924 303 822 943 928 708 332 Core 248 | 2 . . . . . . . . . . . . . . . 238 . . . . . . . . 3 5 . Treads 8705 | 45 438 560 1273 329 657 603 1729 . . . . . 100 738 202 189 357 . . . . . . . 456 703 326 Legs 444 | . . . . . . . . . . . . . . . . . . . . . . . . . 444 . . Wheels . | . . . . . . . . . . . . . . . . . . . . . . . . . . . . Hover . | . . . . . . . . . . . . . . . . . . . . . . . . . . . . Flight 10841 | . . . . . . . 1 2599 443 911 92 598 1247 . . . 72 833 575 453 924 303 822 943 25 . . Fastest Speed 6 | 50 160 240 160 160 240 320 240 28 28 28 28 28 28 170 170 166 6 15 15 25 22 26 26 27 37 135 145 Average Speed 137 | 155 218 240 174 215 244 320 241 28 28 29 28 28 46 170 171 1384 137 24 24 25 25 26 31 33 177 168 154 Slowest Speed 2550 | 160 240 240 240 320 320 320 454 101 28 98 28 98 173 170 173 2350 242 25 25 25 26 100 119 117 2350 2550 235 Overloaded Moves 57 | . . . . . . . . . . . . . . . . . 21 17 19 . . . . . . . . Propulsion Burnouts . | . . . . . . . . . . . . . . . . . . . . . . . . . . . . Robots Hopped 54 | . . . . . . . . 8 . . . . . . . . 4 6 . . 4 . 2 30 . . . Cave-ins Triggered . | . . . . . . . . . . . . . . . . . . . . . . . . . . . . Teleports 2 | . . . . . . . . . . . . . . . . . . . . . . . . . . 1 1 Spacefolds 3 | . . . . . . . . . . . . . . . . . . . . . . . . . . . 3 Exploration Rate (%) 64 | 4 51 96 92 47 84 94 94 69 83 82 74 66 20 86 65 87 51 27 78 69 95 48 21 80 27 81 22 Regions Visited 27 Branch Regions 19 Pre-discovered Areas 15 | . 2 . . . . 8 2 2 . . 1 . . . . . . . . . . . . . . . . Known Exits Taken 18 | . . 1 1 1 . 1 . 1 1 1 1 1 1 . . . 1 1 1 1 . 1 1 1 1 . . Unknown Exits Taken 8 | 1 1 . . . . . 1 . . . . . . 1 1 1 . . . . 1 . . . . 1 . Scrap Searched 21 | . . 2 . . . . 6 . 2 3 . 3 . . . . . . 3 1 . 1 . . . . . Spaces Dug 121 | . 4 . . . 6 . . 22 2 4 . . 12 . . . 7 12 . . . 5 10 11 15 5 6 Terrain Destroyed 1087 | 1 12 5 8 13 23 . . 22 2 34 . 30 68 31 7 11 616 13 . . . 5 10 11 51 77 37 Melee 48 | . . . . . 2 . . 17 2 4 . . 3 . . . . . . . . . 7 8 2 1 2 Projectile 244 | . 4 . . . 1 . . 5 . . . . 35 29 7 11 34 13 . . . 5 3 3 32 40 22 AOE 793 | 1 8 5 8 13 20 . . . . 30 . 30 30 2 . . 582 . . . . . . . 16 36 12 Terrain Rammed . | . . . . . . . . . . . . . . . . . . . . . . . . . . . . Walls Destroyed . | . . . . . . . . . . . . . . . . . . . . . . . . . . . . Machines Disabled . | . . . . . . . . . . . . . . . . . . . . . . . . . . . . Actions | -11 -10 -10 -9 -9 -9 -9 -9 -6 -6 -6 -6 -5 -5 -5 -5 -5 -5 -4 -4 -4 -4 -3 -3 -3 -2 -2 -2 --------- Run | Yrd Mat Min Mat Sto Gar Rec Scr Fac Low Low Dat Pro Fac Ext Cet Arc Hub Fac Upp Upp War Pro Res Tes Res Qua Sec Total 25480 | 75 546 587 1726 423 817 632 1908 2894 699 928 92 679 1663 1076 259 547 618 940 632 455 995 420 929 1124 1651 1294 871 Wait 2299 | . 10 2 242 15 11 6 144 117 255 . . 55 159 106 12 33 49 48 35 . 40 107 40 100 300 226 187 Move 20115 | 46 437 559 1272 329 656 602 1729 2582 442 910 91 597 1346 737 201 426 420 820 574 452 917 302 817 888 927 707 329 Hop 46 | . . . . . . . . 8 . . . . . . . . 4 6 . . 2 . 2 24 . . . Pick Up 326 | 11 25 5 21 8 7 . 10 14 . . . 1 30 20 9 15 11 8 3 1 4 . 11 10 54 31 17 Fast Attach 207 | 3 . 1 14 2 1 . 1 21 . 1 . 4 9 4 5 7 11 9 4 . 7 2 8 14 32 23 24 Attach 184 | 4 2 . 3 . 3 . . 10 . . . . 18 7 2 2 18 6 . . 2 . 3 6 31 24 43 Detach 85 | . . . . . . . . 3 . 1 . . 8 6 2 . 2 2 . . . . 1 5 13 12 30 Swap 287 | . 17 5 22 15 19 8 11 9 . 6 . 5 9 7 1 7 15 4 3 1 5 . 6 10 38 54 10 Drop 413 | 2 13 8 39 9 3 . 12 41 . 1 . 7 22 13 14 19 16 11 7 1 12 2 13 19 60 45 24 Fire 1054 | 9 42 6 103 34 77 11 . 5 . 3 . 3 48 22 13 37 68 25 6 . . 7 18 3 162 167 185 Melee 196 | . . . . . 4 4 1 47 2 6 1 6 12 . . . . 1 . . 6 . 10 45 24 5 22 Ram 1 | . . . . . . . . . . . . . . . . 1 . . . . . . . . . . . Kick 1 | . . . . . . . . . . . . . . . . . . . . . . . . . 1 . . Crush 24 | . . 1 1 1 . 1 . . . . . . 2 5 . . 4 . . . . . . . 9 . . Escape Stasis 65 | . . . . . 28 . . 36 . . . . . 1 . . . . . . . . . . . . . Rewire 148 | . . . . . . . . . . . . . . 148 . . . . . . . . . . . . . Trap 9 | . . . 9 . . . . . . . . . . . . . . . . . . . . . . . . Miscellaneous 20 | . . . . 10 8 . . 1 . . . 1 . . . . . . . . . . . . . . . Route ------- -11/Scrapyard -10/Materials (discovered 2 exits: *Mat / *Min) -10/Mines (discovered 2 exits: *Mat x2) -9/Materials (discovered 5 exits: *Mat x3 / *Min / *Sto) -9/Storage (discovered 2 exits: *Rec / Gar) -9/Garrison (discovered 3 exits: *Rec x3) -9/Recycling (discovered 2 exits: *Fac / *Scr) -9/Scraptown (discovered 2 exits: *Fac x2) -6/Factory (discovered 6 exits: *Fac x4 / *Low x2) -6/Lower Caves -6/Lower Caves (discovered 2 exits: *Fac / *Dat) -6/Data Miner -5/Proximity Caves -5/Factory (discovered 4 exits: *Fac x2 / Upp / *Ext) -5/Extension (discovered 2 exits: *Fac / *Cet) -5/Cetus (discovered 2 exits: *Fac / [*Arc]) -5/Archives (discovered 3 exits: *Fac / *Hub x2) -5/Hub_04(d) (discovered 2 exits: *Fac x2) -4/Factory (discovered 6 exits: Res x4 / *Upp x2) -4/Upper Caves -4/Upper Caves (discovered 2 exits: Res / *War) -4/Warlord -3/Proximity Caves -3/Research (discovered 4 exits: *Res / Arm / *Tes x2) -3/Testing -2/Research (discovered 4 exits: *Acc x2 / *Qua x2) -2/Quarantine (discovered 2 exits: Acc / *Sec) -2/Section 7 History --------- Turn | Location | Event 7 | -11/Scrapyard | Discovered new exit (range 15) 120 | -11/Scrapyard | Entered Materials 363 | -10/Materials | Build established: Mutant 441 | -10/Materials | Central database locked down 441 | -10/Materials | Discovered new exit (range 11) 1020 | -10/Materials | Discovered new exit (range 16) 1268 | -10/Materials | Entered Mines 1338 | -10/Mines | YI-UF0 nonchalantly dropped a Grenade Launcher on the ground 1356 | -10/Mines | Murdered YI-UF0 1366 | -10/Mines | Found Corrupted Prototype Launcher 1512 | -10/Mines | Learned Materials garrison access intel 1548 | -10/Mines | Joined a pair of Derelicts in attacking an 0b10 outpost 1633 | -10/Mines | Discovered new exit (range 14) 2048 | -10/Mines | Assisted by bots powering up and referring to "LRC-V3" 2490 | -10/Mines | Identified exit to Materials 2501 | -10/Mines | Found the Drone Emporium 2512 | -10/Mines | Found Prototype Device 2512 | -10/Mines | Identified Splice Drone Bay 2643 | -10/Mines | Identified YI-UF0's Doublenader 2646 | -10/Mines | Entered Materials 2646 | -9/Materials | Accompanied by 2 allies 2646 | -9/Materials | Evolved 2 slots: Propulsion x1, Utility x1 3371 | -9/Materials | Discovered new exit (range 16) 3516 | -9/Materials | Build established: Scavenger-Mutant 3603 | -9/Materials | Identified exit to Mines 3603 | -9/Materials | Identified exit to Storage 3828 | -9/Materials | Discovered new exit (range 14) 4368 | -9/Materials | Repaired Med. Armor Plating 4508 | -9/Materials | Build established: Mutant 4532 | -9/Materials | Repaired Cld. Ion Engine 4759 | -9/Materials | Learned location of 1 exit from Recycling 4831 | -9/Materials | Learned 4 Recycling zone layouts 4894 | -9/Materials | Identified exit to Materials 4945 | -9/Materials | Learned Storage trap positions 5106 | -9/Materials | Loaded intel: 9 trap records 5327 | -9/Materials | Repaired Adv. Beam Cannon 5520 | -9/Materials | Entered Storage 5521 | -9/Storage | Loaded intel: 4 trap records 5978 | -9/Storage | Garrison activated, responded to threat 6274 | -9/Storage | Used back door to open Recycling access 6274 | -9/Storage | Discovered new exit (range 3) 6412 | -9/Storage | Identified exit to Garrison 6412 | -9/Storage | Entered Garrison 6495 | -9/Garrison | Triggered checkpoint 6591 | -9/Garrison | Rescued a captive Derelict 6675 | -9/Garrison | Garrison Relay disabled 6852 | -9/Garrison | Triggered checkpoint 6862 | -9/Garrison | Triggered checkpoint 6908 | -9/Garrison | Triggered checkpoint 7075 | -9/Garrison | Discovered new exit (range 11) 7082 | -9/Garrison | Triggered checkpoint 7116 | -9/Garrison | Garrison Relay disabled 7356 | -9/Garrison | Triggered checkpoint 7484 | -9/Garrison | Triggered checkpoint 7534 | -9/Garrison | Garrison Relay disabled 7572 | -9/Garrison | Discovered new exit (range 14) 7780 | -9/Garrison | Triggered checkpoint 7816 | -9/Garrison | Garrison Relay disabled 7894 | -9/Garrison | Discovered new exit (range 12) 8131 | -9/Garrison | Garrison Relay disabled 8133 | -9/Garrison | Garrison Relay disabled 8195 | -9/Garrison | Garrison Relay disabled 8197 | -9/Garrison | Garrison Relay disabled 8205 | -9/Garrison | Lost 3 parts (2n1u) 8324 | -9/Garrison | Entered Recycling 8325 | -9/Recycling | Identified exit to Factory 8417 | -9/Recycling | Scanned before Scraplab entrance 8523 | -9/Recycling | Build established: Scavenger-Mutant 9048 | -9/Recycling | Identified exit to Scraptown 9265 | -9/Recycling | Learned location of Zion (-7) 10281 | -9/Recycling | Entered Scraplab 10313 | -9/Recycling | Entered Scraptown 10313 | -9/Scraptown | System corruption cleaned by C-Scrubber 10703 | -9/Scraptown | Build established: Mutant 11092 | -9/Scraptown | Discovered new exit (range 5) 11277 | -9/Scraptown | Visited Cyclists 11339 | -9/Scraptown | Visited CR-KLE's Repair Center 11416 | -9/Scraptown | Visited Spacefarers 11539 | -9/Scraptown | Visited Fellowship of the Rings 11633 | -9/Scraptown | Visited UFD Registry 11633 | -9/Scraptown | Registered with UFD as "Megamod" 11669 | -9/Scraptown | Visited The Evicted 11748 | -9/Scraptown | Visited IN-MT5's Study 11847 | -9/Scraptown | Entered Cyclist Reading Room 12492 | -9/Scraptown | Visited Observation Area 12626 | -9/Scraptown | Visited Cartography Club 12722 | -9/Scraptown | Visited Chapter 10 12770 | -9/Scraptown | Visited Botcube Research 12816 | -9/Scraptown | Visited Scrap Suit Storage 12873 | -9/Scraptown | Visited DA-N13 Charitable Foundation 12900 | -9/Scraptown | Found DCF Scrap (30 items) 12995 | -9/Scraptown | Visited Derelict Rescue Squad 13012 | -9/Scraptown | Found DRS Beacon 13056 | -9/Scraptown | Visited Supply Room 13116 | -9/Scraptown | Visited Science Guys 13899 | -9/Scraptown | Found Surveybot 17 Chip 14041 | -9/Scraptown | Discovered new exit (range 39) 14317 | -9/Scraptown | CR-KLE repaired 7 parts 14663 | -9/Scraptown | Entered Factory 14663 | -6/Factory | Evolved 6 slots: Propulsion x2, Utility x4 14728 | -6/Factory | Spotted B-75 Beast 14780 | -6/Factory | Discovered new exit (range 5) 14781 | -6/Factory | Identified exit to Factory 15013 | -6/Factory | Search patrols dispatched 15028 | -6/Factory | Build established: Hacker-Sprinter 15135 | -6/Factory | Fabricated Adv. Sensor Array? 15169 | -6/Factory | Identified exit to Lower Caves 15245 | -6/Factory | Repaired Imp. Flight Unit 15251 | -6/Factory | Learned location of 2 exits from Upper Caves 15339 | -6/Factory | Fabricated Launcher Loader? 15442 | -6/Factory | Learned 2 Upper Caves zone layouts 15486 | -6/Factory | Learned location of Proximity Caves (-4) 15522 | -6/Factory | Learned 2 Extension zone layouts 15542 | -6/Factory | Fabricated Imp. Light Armor Plating (x2) 15629 | -6/Factory | Learned Extension emergency access door positions 15696 | -6/Factory | Loaded intel: 105 trap records 15769 | -6/Factory | Entered Lower Caves 15842 | -6/Lower Caves | Discovered new exit (range 9) 15846 | -6/Lower Caves | Identified exit to Lower Caves 15858 | -6/Lower Caves | Encountered a Warlord checkpoint 16153 | -6/Lower Caves | Entered another Lower Caves area 16166 | -6/Lower Caves | Identified exit to Data Miner 16458 | -6/Lower Caves | Entered Data Miner 16458 | -6/Data Miner | Discovered new exit (range 6) 16464 | -6/Data Miner | Met Data Miner 16475 | -6/Data Miner | Learned location of Section 7 (-2) 16475 | -6/Data Miner | Acquired the access code to Warlord's prototype stash 16479 | -6/Data Miner | Received God Mode back door access code from Data Miner 16485 | -6/Data Miner | Identified exit to Proximity Caves 16485 | -6/Data Miner | Entered Proximity Caves 16580 | -5/Proximity Caves | Spotter reported a threat 16633 | -5/Proximity Caves | Spotter reported a threat 16659 | -5/Proximity Caves | Found DCF Scrap (10 items) 16688 | -5/Proximity Caves | Activated DRS Beacon 16747 | -5/Proximity Caves | Entered Factory 16747 | -5/Factory | Evolved 2 slots: Propulsion x1, Utility x1 16748 | -5/Factory | Identified exit to Factory 16748 | -5/Factory | Identified exit to Upper Caves 16748 | -5/Factory | Identified exit to Extension 16914 | -5/Factory | Lost 4 allies 16956 | -5/Factory | Discovered exit to Factory (range 11) 17030 | -5/Factory | Fabricated Combat Drone Bay? 17045 | -5/Factory | Build established: Hacker-Mutant 17047 | -5/Factory | Search patrols dispatched 17224 | -5/Factory | Fabricated Imp. Heavy Siege Treads (x1) 17246 | -5/Factory | Fabricated Imp. Heavy Siege Treads (x1) 17373 | -5/Factory | Build established: Hacker-Sprinter 17476 | -5/Factory | Lost 9 parts (1p3n3u2w) 17711 | -5/Factory | Build established: Hacker-Mutant 17764 | -5/Factory | Entered Extension 18171 | -5/Extension | System corruption reached 10% 18220 | -5/Extension | Rescued a captive Derelict 18265 | -5/Extension | Rescued a captive Derelict 18649 | -5/Extension | Warlord forces began an assault 18706 | -5/Extension | Build established: Commander-Mutant 19055 | -5/Extension | Rescued a captive Derelict 19055 | -5/Extension | Rescued a captive Derelict 19071 | -5/Extension | Lost 3 allies 19145 | -5/Extension | Rescued a captive Derelict 19146 | -5/Extension | Rescued a captive Derelict 19166 | -5/Extension | Rescued a captive Derelict 19167 | -5/Extension | Rescued a captive Derelict 19192 | -5/Extension | Rescued a captive Derelict 19193 | -5/Extension | Rescued a captive Derelict 19238 | -5/Extension | Rescued A7 19256 | -5/Extension | Rescued a captive Derelict 19272 | -5/Extension | Rescued a captive Derelict 19314 | -5/Extension | Discovered exit to Factory (range 10) 19316 | -5/Extension | Discovered new exit (range 6) 19393 | -5/Extension | Entered Cetus 19393 | -5/Cetus | Accompanied by 24 allies (A7) 19398 | -5/Cetus | Acquired a Cetus Manufacturing Module code from A7 19418 | -5/Cetus | Spotted Cetus Guard 19418 | -5/Cetus | Spotted Cetus Guard 19420 | -5/Cetus | Spotted Cetus Guard 19421 | -5/Cetus | Spotted Cetus Guard 19429 | -5/Cetus | Allies destroyed Cetus Guard 19447 | -5/Cetus | Destroyed Cetus Guard 19450 | -5/Cetus | Allies destroyed Cetus Guard 19451 | -5/Cetus | Allies destroyed Cetus Guard 19473 | -5/Cetus | Lost 6 allies 19566 | -5/Cetus | Started Cetus Manufacturing Module 19577 | -5/Cetus | Escorted A7 to Cetus Mainframe 19591 | -5/Cetus | Manufactured an Enhanced Grunt 19595 | -5/Cetus | Discovered new exit (range 16) 19616 | -5/Cetus | Manufactured an Enhanced Grunt 19626 | -5/Cetus | Spotted Cetus Guard 19626 | -5/Cetus | Spotted Cetus Guard 19628 | -5/Cetus | Spotted Cetus Guard 19628 | -5/Cetus | Spotted Cetus Guard 19628 | -5/Cetus | Allies destroyed Cetus Guard 19628 | -5/Cetus | Allies destroyed Cetus Guard 19630 | -5/Cetus | Discovered exit to Factory (range 22) 19635 | -5/Cetus | Destroyed Cetus Guard 19638 | -5/Cetus | Destroyed Cetus Guard 19641 | -5/Cetus | Manufactured an Enhanced Grunt 19666 | -5/Cetus | Manufactured an Enhanced Grunt 19666 | -5/Cetus | Met Revision 17 19691 | -5/Cetus | Manufactured an Enhanced Grunt 19814 | -5/Cetus | Entered Archives 19814 | -5/Archives | Accompanied by 11 allies (A7) 19819 | -5/Archives | Received a hacking code to weaken MAIN.C 19846 | -5/Archives | Discovered new exit (range 24) 19868 | -5/Archives | Lost 3 allies 20018 | -5/Archives | Discovered exit to Factory (range 15) 20127 | -5/Archives | Discovered new exit (range 15) 20258 | -5/Archives | Build established: Scavenger-Mutant 25931 | -5/Archives | Entered Hub_04(d) 25931 | -5/Hub_04(d) | Accompanied by 5 allies 25931 | -5/Hub_04(d) | Discovered exit to Factory (range 10) 26021 | -5/Hub_04(d) | Lost 5 allies 26690 | -5/Hub_04(d) | Network Hub disabled 26692 | -5/Hub_04(d) | Network Hub disabled 26749 | -5/Hub_04(d) | Network Hub disabled 26749 | -5/Hub_04(d) | Network Hub disabled 26776 | -5/Hub_04(d) | Spotted Lightning 26777 | -5/Hub_04(d) | Spotted Lightning 26777 | -5/Hub_04(d) | Spotted Lightning 26777 | -5/Hub_04(d) | Spotted Lightning 26777 | -5/Hub_04(d) | Spotted Lightning 26777 | -5/Hub_04(d) | Spotted Lightning 26778 | -5/Hub_04(d) | Spotted Lightning 26780 | -5/Hub_04(d) | Spotted Lightning 26781 | -5/Hub_04(d) | Spotted Lightning 26807 | -5/Hub_04(d) | System corruption reached 30% 26837 | -5/Hub_04(d) | Core integrity fell below 50% 26843 | -5/Hub_04(d) | Discovered exit to Factory (range 13) 26847 | -5/Hub_04(d) | Entered Factory 26847 | -4/Factory | Evolved 2 slots: Utility x2 26850 | -4/Factory | Identified exit to Upper Caves 26864 | -4/Factory | Lost 13 parts (5n6u2w) 26905 | -4/Factory | Fabricated Imp. Light Armor Plating (x2) 27104 | -4/Factory | Identified exit to Research 27118 | -4/Factory | Fabricated Lgt. Quantum Reactor (x2) 27118 | -4/Factory | Build established: Wizard-Sprinter 27149 | -4/Factory | Fabricated Nuclear Pulse Array (x1) 27185 | -4/Factory | Spotted B-86 Titan 27192 | -4/Factory | Entered Upper Caves 27193 | -4/Upper Caves | Identified exit to Upper Caves 27213 | -4/Upper Caves | Encountered a Warlord checkpoint 27398 | -4/Upper Caves | Entered another Upper Caves area 27399 | -4/Upper Caves | Learned 8 Research zone layouts 27458 | -4/Upper Caves | Identified exit to Warlord 27480 | -4/Upper Caves | Attracted the attention of an 0b10 outpost 27515 | -4/Upper Caves | Entered Warlord 27525 | -4/Warlord | System corruption cleaned by Quarantine Array 27612 | -4/Warlord | Visited the Vortex Lab 27615 | -4/Warlord | Met EX-DEC 27617 | -4/Warlord | Found Prototype Launcher 27617 | -4/Warlord | Identified Vortex Catalyst Activator 27619 | -4/Warlord | Found Prototype Energy Cannon 27619 | -4/Warlord | Identified Vortex Cannon 27620 | -4/Warlord | Warlord's base attacked by MAIN.C 27622 | -4/Warlord | Found Prototype Energy Gun 27622 | -4/Warlord | Identified Vortex Rifle 27647 | -4/Warlord | Rebuked by Warlord 27652 | -4/Warlord | Opened Warlord's prototype stash 27661 | -4/Warlord | Found Prototype Device 27662 | -4/Warlord | Found Prototype Processor 27663 | -4/Warlord | Identified Thermal Barrier 27666 | -4/Warlord | Identified Exp. Target Analyzer 27671 | -4/Warlord | Found System Mapper 27721 | -4/Warlord | Opened side exit 27724 | -4/Warlord | Spotted B-90 Cyclops 27821 | -4/Warlord | Discovered new exit (range 8) 27823 | -4/Warlord | Entered Proximity Caves 27889 | -3/Proximity Caves | Lost 4 allies 27998 | -3/Proximity Caves | Spotted B-86 Titan 28016 | -3/Proximity Caves | Discovered exit to Research (range 11) 28028 | -3/Proximity Caves | Entered Research 28028 | -3/Research | Accompanied by 1 ally 28028 | -3/Research | Evolved 2 slots: Power x1, Utility x1 28029 | -3/Research | Identified exit to Armory 28087 | -3/Research | Fabricated Imp. Quantum Reactor (x1) 28228 | -3/Research | Revision forces began assault on 0b10 28294 | -3/Research | Met up with Revision 17++ 28342 | -3/Research | Identified exit to Testing 28354 | -3/Research | Lost 3 allies 28408 | -3/Research | Discovered new exit (range 12) 28431 | -3/Research | Entered Testing 28577 | -3/Testing | Found Prototype Energy Gun 28577 | -3/Testing | Identified Hyp. EM Gauss Rifle 28684 | -3/Testing | Repaired Impulse Thruster Array 28807 | -3/Testing | Fabricated Exp. Terrain Scanner? 28913 | -3/Testing | Build established: Hacker-Mutant 28958 | -3/Testing | Fabricated Exp. Utility Shielding (x1) 28979 | -3/Testing | Spotted Striker 28980 | -3/Testing | Spotted Striker 28988 | -3/Testing | Found Portable AFG 29008 | -3/Testing | Identified exit to Research 29032 | -3/Testing | Entered Research 29032 | -2/Research | Evolved 2 slots: Utility x2 29088 | -2/Research | Identified exit to Quarantine 29189 | -2/Research | Lost 3 parts (1p1u1w) 29587 | -2/Research | Repaired Imp. Heavy Siege Treads? 29681 | -2/Research | Repaired Adv. Heavy Treads 29766 | -2/Research | Repaired Biometal Heavy Treads 29945 | -2/Research | Discovered new exit (range 21) 30022 | -2/Research | Discovered new exit (range 24) 30308 | -2/Research | Build established: Scavenger-Mutant 30398 | -2/Research | Identified exit to Access 30772 | -2/Research | Found Quantum Capacitor 31062 | -2/Research | Build established: Wizard-Mutant 31395 | -2/Research | Fabricated Hvy. Reactive Plating (x1) 31419 | -2/Research | Fabricated Adv. Force Field (x2) 31445 | -2/Research | Fabricated Exp. Utility Shielding (x1) 31449 | -2/Research | Incoming investigation squad redirected 31534 | -2/Research | Repaired Lyr. Heavy Armor Plating 31589 | -2/Research | Build established: Hacker-Mutant 31671 | -2/Research | Entered Quarantine 31689 | -2/Quarantine | Found Alien Artifact 31689 | -2/Quarantine | Identified Core Reset Matrix 31689 | -2/Quarantine | Used Core Reset Matrix 31693 | -2/Quarantine | Detected hypermatrix surge 31693 | -2/Quarantine | Sensed 13 artifacts in vicinity 31958 | -2/Quarantine | System corruption reached 10% 32036 | -2/Quarantine | Build established: Wizard-Mutant 32045 | -2/Quarantine | Found Hpw. Transdimensional Reconstructor 32046 | -2/Quarantine | Warped through subspace 32288 | -2/Quarantine | Met incapacitated Sigix Warrior 32288 | -2/Quarantine | Lockdown squad dispatched 32298 | -2/Quarantine | Acquired the access code to the Sigix quarantine chamber 32301 | -2/Quarantine | Unlocked Sigix quarantine chamber 32308 | -2/Quarantine | Found Sigix Containment Pod 32383 | -2/Quarantine | Spotted Lightning 32384 | -2/Quarantine | Spotted Lightning 32397 | -2/Quarantine | Spotted Lightning 32401 | -2/Quarantine | System corruption reached 30% 32411 | -2/Quarantine | Destroyed Lightning 32433 | -2/Quarantine | Destroyed Lightning 32436 | -2/Quarantine | Destroyed Lightning 32444 | -2/Quarantine | Found Prototype Energy Cannon 32449 | -2/Quarantine | Found Prototype Device 32450 | -2/Quarantine | Identified Exp. EM Disruption Field 32466 | -2/Quarantine | Found Prototype Energy Cannon 32616 | -2/Quarantine | Found Transdimensional Reconstructor 32618 | -2/Quarantine | Found Transdimensional Reconstructor 32723 | -2/Quarantine | Identified EMDS (x2) 32788 | -2/Quarantine | Garrison activated, responded to threat 32834 | -2/Quarantine | Spotted Alpha 7 32873 | -2/Quarantine | Destroyed 11 combat bots 32937 | -2/Quarantine | Found Sigix Broadsword 32960 | -2/Quarantine | Found Subatomic Replicator 33048 | -2/Quarantine | Repaired Exp. Utility Shielding 33072 | -2/Quarantine | Repaired Quantum Reactor 33315 | -2/Quarantine | Spotted Fortress 33421 | -2/Quarantine | Discovered new exit (range 6) 33561 | -2/Quarantine | Entered Section 7 33562 | -2/Section 7 | Sensed 20 artifacts in vicinity 33610 | -2/Section 7 | Found Integrated Mediator 33610 | -2/Section 7 | Installed Integrated Mediator, increased core attachment efficiency 33853 | -2/Section 7 | Found Spacefold Activator 33857 | -2/Section 7 | Core integrity fell below 50% 33886 | -2/Section 7 | Warped through subspace 33925 | -2/Section 7 | Discovered exit to Access (range 15) 34003 | -2/Section 7 | Build established: Hacker-Mutant 34177 | -2/Section 7 | Repaired Quantum Reactor 34217 | -2/Section 7 | Repaired Biometal Heavy Treads 34223 | -2/Section 7 | Spotted Alpha 7 34262 | -2/Section 7 | Repaired Broken Hvy. Shock Bomb Launcher 34278 | -2/Section 7 | Destroyed Alpha 7 34315 | -2/Section 7 | Spotted Alpha 7 34344 | -2/Section 7 | Destroyed Alpha 7 34416 | -2/Section 7 | Core integrity fell below 20% 34535 | -2/Section 7 | Spotted B-99 Colossus 34596 | -2/Section 7 | Found Core Reset Matrix 34598 | -2/Section 7 | Sensed 17 artifacts in vicinity 34659 | -2/Section 7 | Destroyed by B-99 Colossus with Linear Accelerator Last Messages --------------- 34650_ P-80 Master resets B-99 Colossus, system corruption cleaned. 34650_ Dropped Sigix Containment Pod. 34651_ Acquired Hdn. Centrium Leg. 34652_ Penetrated by Slug. 34652_ Slug penetrates Reinforced Barrier. 34652_ EMDS Slug penetrates B-99 Colossus. 34655_ EMDS destroyed. 34655_ Penetrated by Slug. 34655_ Slug penetrates Reinforced Barrier. 34655_ Penetrated by Slug. 34655_ Slug penetrates Reinforced Barrier. 34658_ Adv. Heat Sink destroyed. 34658_ P-80 Master resets B-99 Colossus, system corruption cleaned. 34659_ Acquired 32 matter. 34659_ Acquired 47 matter. 34659_ Acquired 19 matter. 34659_ Acquired 4 matter. [Achievement: I Was Wrong!] Map ----- +----------------------------------------------------+ | ?????????????????????????????????????????????????? | | ?????????????????????????????????????????????????? | | ?????????????????????????????????????????????????? | | ?????????????????????????????????????????????????? | | ?????????????????????????????????????????????????? | | ?????????????????????????????????????????????????? | | ?????????????????????????????????????????????????? | | ?????????????????????????????????????????????????? | | ?????????????????????????????????????????????????? | | ?????????????????????????????????????????????????? | | ?????????????????????????????????????????????????? | | ?????????????????????????????????????????????????? | | ?????????????????????????????????????????????????? | | ?????????????????????????????????????????????????? | | ?????????????????????????????????????????????????? | | ?????????????????????????????????????????????????? | | ?????????????????????????????????????????????????? | | ?????????????????????????????????????????????????? | | ?????????????????????????????????????????????????? | | ?????????????????????????????????????????????????? | | ?????????????????????????????????????????????????? | | ?????????????????????????????????????????????????? | | ?????????????????????????????????????????????????? | | ?????????????????????????????????????????????????? | | ??????????????????????#####??????????????????????? | | ??????????????????????#!!@#??????????????????????? | | ???????????????????#" """&BB?????????????????????? | | ???????????????????#" pBB ???????????????????? | | ???????????????????#" p ""?????????????????? | | ???????????????????#""""" """#???????????????? | | ???????????????????#""""" """????????????????? | | ???????????????????#""""" """????????????????? | | ??????????????????????""" """????????????????? | | ???????????????????????? """"????????????????? | | ????????????????????????" """????????????????? | | ????????????????????????" ""??????????????????? | | ????????????????????????### ##??????????????????? | | ??????????????????????????? #???????????????????? | | ??????????????????????????? #???????????????????? | | ??????????????????????????? #???????????????????? | | ?????????????????????????????????????????????????? | | ?????????????????????????????????????????????????? | | ?????????????????????????????????????????????????? | | ?????????????????????????????????????????????????? | | ?????????????????????????????????????????????????? | | ?????????????????????????????????????????????????? | | ?????????????????????????????????????????????????? | | ?????????????????????????????????????????????????? | | ???????????????????????????????????????!????!????? | | ?????????????????????????????????????????????????? | +----------------------------------------------------+ Best States ------------- Heat Dissipation 136 Energy Generation 45 Energy Capacity 600 Matter Stores 300 Matter Capacity 300 Sight Range 22 Robot Scan Range 18 Terrain Scan Range 30 Terrain Scan Density 1210 ECM Strength 1 Jamming Range 16 Cloak Strength 3 Additional Mass Support 9 EM Shielding 3 Corruption Containment 12 Corruption Block 20 Armor Coverage 1800 Resistance: KI 40 Resistance: TH 50 Resistance: EM 75 Utility Shielding 90 Weapon Shielding 66 Weapon Cycling 25 Phase Shifting 10 Evasion (%) 75 Targeting Accuracy 8 Melee Accuracy 8 Target Analysis 8 Recoil Reduction 6 Kinecelleration 40 Offensive Hacking 68 Defensive Hacking 22 Authchip Count 2 Item Schematics ----------------- None Robot Schematics ------------------ None Fabricated ------------ Adv. Sensor Array | x2 | -6/Factory | Preloaded Launcher Loader | x2 | -6/Factory | Preloaded Imp. Light Armor Plating | x2 | -6/Factory | Authchip Combat Drone Bay | x1 | -5/Factory | Authchip Imp. Heavy Siege Treads | x1 | -5/Factory | Authchip Imp. Heavy Siege Treads | x1 | -5/Factory | Authchip Imp. Light Armor Plating | x2 | -4/Factory Lgt. Quantum Reactor | x2 | -4/Factory | Preloaded Nuclear Pulse Array | x1 | -4/Factory Imp. Quantum Reactor | x1 | -3/Research | Preloaded Exp. Terrain Scanner | x1 | -3/Testing Exp. Utility Shielding | x1 | -3/Testing Hvy. Reactive Plating | x1 | -2/Research | Authchip Adv. Force Field | x2 | -2/Research | Authchip Exp. Utility Shielding | x1 | -2/Research Alien Tech Used ----------------- Core Reset Matrix High-powered Transdimensional Reconstructor Sigix Broadsword Integrated Mediator Spacefold Activator Transdimensional Reconstructor Achievements -------------- I Was Wrong! Challenges ------------ None Game ------ Seed MassChainMonowheel Manual? 0 Play Time 06:12:54 Cumulative 386.7 hours Start 2024.10.19 @ 12:00:24 End 2024.10.19 @ 18:32:26 Sessions 1 Manual Loads 0 Difficulty Rogue Special Mode None Game No. 271 Rogue 266 Adventurer 5 Explorer 0 Win Type - Total 9 Types 4/0/5/0/0/0/0/0/0 Lore% 75 Gallery% 88 Achievement% 73 Wizard Run 0 Options --------- Layout 2 ASCII 0 Keyboard 0 Movement Mouse Keybinds 0 Fullscreen 2 Font 24/Smallcaps Map View 50x44 Zoom Use 0% Tactical HUD 1 Map Filters NONE Filters NONE Steam 1 RUN: 8420d359-52e3-4e73-8854-690df0865b78